[Event "Titled Tuesday Blitz August 22 Late 2023"]
[White "Suyarov, Mukhammadzokhid"]
[Black "Filgueiras, Nathan Felipe"]
[WhiteFideId "14210495"]
[BlackFideId "2188562"]
[WhiteElo "2718"]
[BlackElo "2504"]
[Result "1/2-1/2"]
[Round "7"]
[TimeControl "180+1"]
[Date "2023.08.22"]
[WhiteClock "0:00:30"]
[BlackClock "0:00:05"]
[Board "72"]

1. d4 {[%clk 0:02:35]}  Nf6 {[%clk 0:02:59]} 2. Nc3 {[%clk 0:02:34]}  d5 {[%clk 0:02:53]} 3. Bf4 {[%clk 0:02:34]}  c5 {[%clk 0:02:40]} 4. e4 {[%clk 0:02:34]}  dxe4 {[%clk 0:02:21]} 5. dxc5 {[%clk 0:02:32]}  Nbd7 {[%clk 0:02:15]} 6. b4 {[%clk 0:02:29]}  e5 {[%clk 0:02:12]} 7. Bg5 {[%clk 0:02:29]}  Be7 {[%clk 0:02:12]} 8. Bc4 {[%clk 0:02:28]}  O-O {[%clk 0:02:07]} 9. Nge2 {[%clk 0:02:28]}  h6 {[%clk 0:02:05]} 10. Bh4 {[%clk 0:02:28]}  Qc7 {[%clk 0:02:05]} 11. Nxe4 {[%clk 0:02:23]}  a5 {[%clk 0:01:45]} 12. a3 {[%clk 0:02:18]}  b6 {[%clk 0:01:39]} 13. Nxf6+ {[%clk 0:02:16]}  Nxf6 {[%clk 0:01:35]} 14. O-O {[%clk 0:02:15]}  Rd8 {[%clk 0:01:31]} 15. Qc1 {[%clk 0:02:13]}  bxc5 {[%clk 0:01:31]} 16. b5 {[%clk 0:02:12]}  Bb7 {[%clk 0:01:16]} 17. Bg3 {[%clk 0:02:07]}  Ne4 {[%clk 0:01:10]} 18. Qe3 {[%clk 0:01:50]}  Bg5 {[%clk 0:01:02]} 19. f4 {[%clk 0:01:49]}  exf4 {[%clk 0:00:58]} 20. Bxf4 {[%clk 0:01:48]}  Bxf4 {[%clk 0:00:58]} 21. Rxf4 {[%clk 0:01:49]}  Nf6 {[%clk 0:00:51]} 22. Raf1 {[%clk 0:01:41]}  Re8 {[%clk 0:00:51]} 23. Qg3 {[%clk 0:01:39]}  Bd5 {[%clk 0:00:36]} 24. b6 {[%clk 0:01:28]}  Qd6 {[%clk 0:00:29]} 25. Bxd5 {[%clk 0:01:21]}  Nxd5 {[%clk 0:00:29]} 26. Rxf7 {[%clk 0:01:21]}  Qxg3 {[%clk 0:00:29]} 27. Nxg3 {[%clk 0:01:22]}  Nxb6 {[%clk 0:00:27]} 28. Nh5 {[%clk 0:01:22]}  Rf8 {[%clk 0:00:18]} 29. Rxg7+ {[%clk 0:01:20]}  Kh8 {[%clk 0:00:19]} 30. Rg6 {[%clk 0:01:15]}  Rxf1+ {[%clk 0:00:17]} 31. Kxf1 {[%clk 0:01:16]}  Nc4 {[%clk 0:00:18]} 32. Rxh6+ {[%clk 0:01:14]}  Kg8 {[%clk 0:00:19]} 33. Rg6+ {[%clk 0:01:12]}  Kf7 {[%clk 0:00:18]} 34. Rc6 {[%clk 0:01:13]}  Nxa3 {[%clk 0:00:18]} 35. Rxc5 {[%clk 0:01:12]}  a4 {[%clk 0:00:19]} 36. Nf4 {[%clk 0:01:13]}  Nb1 {[%clk 0:00:18]} 37. Rb5 {[%clk 0:01:13]}  Nc3 {[%clk 0:00:17]} 38. Rc5 {[%clk 0:01:12]}  a3 {[%clk 0:00:17]} 39. Rc7+ {[%clk 0:01:10]}  Ke8 {[%clk 0:00:15]} 40. Rh7 {[%clk 0:01:10]}  Rd8 {[%clk 0:00:12]} 41. Nd3 {[%clk 0:00:53]}  a2 {[%clk 0:00:11]} 42. Ra7 {[%clk 0:00:54]}  Rb8 {[%clk 0:00:11]} 43. Ke1 {[%clk 0:00:53]}  Rb1+ {[%clk 0:00:12]} 44. Kd2 {[%clk 0:00:54]}  a1=Q {[%clk 0:00:12]} 45. Rxa1 {[%clk 0:00:54]}  Rxa1 {[%clk 0:00:13]} 46. Kxc3 {[%clk 0:00:55]}  Rg1 {[%clk 0:00:14]} 47. Nf4 {[%clk 0:00:55]}  Rf1 {[%clk 0:00:13]} 48. g3 {[%clk 0:00:52]}  Rh1 {[%clk 0:00:13]} 49. h4 {[%clk 0:00:49]}  Rg1 {[%clk 0:00:13]} 50. Nh5 {[%clk 0:00:50]}  Kf7 {[%clk 0:00:13]} 51. Kd3 {[%clk 0:00:49]}  Kg6 {[%clk 0:00:13]} 52. Nf4+ {[%clk 0:00:50]}  Kf5 {[%clk 0:00:13]} 53. Ne2 {[%clk 0:00:51]}  Rd1+ {[%clk 0:00:12]} 54. Ke3 {[%clk 0:00:51]}  Kg4 {[%clk 0:00:11]} 55. c4 {[%clk 0:00:52]}  Rd8 {[%clk 0:00:11]} 56. c5 {[%clk 0:00:52]}  Rd7 {[%clk 0:00:11]} 57. Ke4 {[%clk 0:00:47]}  Re7+ {[%clk 0:00:10]} 58. Kd3 {[%clk 0:00:47]}  Rd7+ {[%clk 0:00:10]} 59. Kc4 {[%clk 0:00:47]}  Re7 {[%clk 0:00:11]} 60. Nd4 {[%clk 0:00:47]}  Re8 {[%clk 0:00:09]} 61. c6 {[%clk 0:00:43]}  Kxg3 {[%clk 0:00:09]} 62. h5 {[%clk 0:00:43]}  Kg4 {[%clk 0:00:09]} 63. h6 {[%clk 0:00:43]}  Kg5 {[%clk 0:00:09]} 64. h7 {[%clk 0:00:43]}  Kg6 {[%clk 0:00:09]} 65. Nb5 {[%clk 0:00:42]}  Kxh7 {[%clk 0:00:09]} 66. Nd6 {[%clk 0:00:43]}  Rf8 {[%clk 0:00:09]} 67. c7 {[%clk 0:00:43]}  Kg7 {[%clk 0:00:09]} 68. Kd5 {[%clk 0:00:43]}  Kf6 {[%clk 0:00:09]} 69. Kc6 {[%clk 0:00:43]}  Ke7 {[%clk 0:00:09]} 70. Nf5+ {[%clk 0:00:38]}  Ke6 {[%clk 0:00:09]} 71. Nd4+ {[%clk 0:00:37]}  Ke7 {[%clk 0:00:09]} 72. Kb7 {[%clk 0:00:37]}  Kd7 {[%clk 0:00:08]} 73. Nc6 {[%clk 0:00:36]}  Rh8 {[%clk 0:00:06]} 74. Ne5+ {[%clk 0:00:36]}  Ke6 {[%clk 0:00:06]} 75. Ng6 {[%clk 0:00:34]}  Rg8 {[%clk 0:00:05]} 76. Kc6 {[%clk 0:00:34]}  Kf6 {[%clk 0:00:04]} 77. Nf4 {[%clk 0:00:33]}  Rc8 {[%clk 0:00:04]} 78. Nd5+ {[%clk 0:00:30]}  Ke5 {[%clk 0:00:04]} 79. Nb6 {[%clk 0:00:30]}  Rxc7+ {[%clk 0:00:05]} 80. Kxc7 {[%clk 0:00:30]} 1/2-1/2


[Site "https://www.chess.com"]

[Event "Titled Tuesday Blitz August 22 Late 2023"]
[White "Mickiewicz, Piotr"]
[Black "Schnaider, Ilan"]
[WhiteFideId "1114891"]
[BlackFideId "169013"]
[WhiteElo "2500"]
[BlackElo "2690"]
[Result "1-0"]
[Round "7"]
[TimeControl "180+1"]
[Date "2023.08.22"]
[WhiteClock "0:00:10"]
[BlackClock "0:00:11"]
[Board "73"]

1. c4 {[%clk 0:03:00]}  Nf6 {[%clk 0:02:57]} 2. Nf3 {[%clk 0:03:01]}  g6 {[%clk 0:02:57]} 3. g3 {[%clk 0:03:02]}  Bg7 {[%clk 0:02:56]} 4. Bg2 {[%clk 0:03:02]}  O-O {[%clk 0:02:56]} 5. O-O {[%clk 0:03:03]}  Nc6 {[%clk 0:02:57]} 6. Nc3 {[%clk 0:03:03]}  d5 {[%clk 0:02:57]} 7. cxd5 {[%clk 0:03:02]}  Nxd5 {[%clk 0:02:58]} 8. d4 {[%clk 0:02:58]}  e5 {[%clk 0:02:58]} 9. dxe5 {[%clk 0:02:52]}  Nxc3 {[%clk 0:02:56]} 10. bxc3 {[%clk 0:02:52]}  Nxe5 {[%clk 0:02:57]} 11. Ba3 {[%clk 0:02:35]}  Re8 {[%clk 0:02:44]} 12. Nxe5 {[%clk 0:02:28]}  Bxe5 {[%clk 0:02:43]} 13. Qxd8 {[%clk 0:02:22]}  Rxd8 {[%clk 0:02:42]} 14. Rfd1 {[%clk 0:02:13]}  Be6 {[%clk 0:02:38]} 15. Bxb7 {[%clk 0:02:04]}  Rab8 {[%clk 0:02:37]} 16. Bc6 {[%clk 0:01:33]}  Bxc3 {[%clk 0:02:37]} 17. Rac1 {[%clk 0:01:30]}  Rxd1+ {[%clk 0:02:36]} 18. Rxd1 {[%clk 0:01:29]}  Bxa2 {[%clk 0:02:37]} 19. Kg2 {[%clk 0:01:20]}  Be6 {[%clk 0:02:35]} 20. Bc5 {[%clk 0:01:14]}  a5 {[%clk 0:02:23]} 21. e4 {[%clk 0:01:13]}  h5 {[%clk 0:02:15]} 22. h4 {[%clk 0:01:11]}  Bb4 {[%clk 0:02:09]} 23. Be3 {[%clk 0:01:08]}  Bb3 {[%clk 0:02:02]} 24. Rd3 {[%clk 0:00:53]}  a4 {[%clk 0:01:55]} 25. f4 {[%clk 0:00:45]}  Bc2 {[%clk 0:01:53]} 26. Rd7 {[%clk 0:00:39]}  a3 {[%clk 0:01:52]} 27. Bd5 {[%clk 0:00:35]}  Bb1 {[%clk 0:00:36]} 28. Bxf7+ {[%clk 0:00:27]}  Kf8 {[%clk 0:00:36]} 29. Bd5 {[%clk 0:00:10]}  Bc3 {[%clk 0:00:15]} 30. Rxc7 {[%clk 0:00:07]}  a2 {[%clk 0:00:13]} 31. Bxa2 {[%clk 0:00:06]}  Ba5 {[%clk 0:00:11]} 32. Bc5+ {[%clk 0:00:04]}  Ke8 {[%clk 0:00:10]} 33. Bf7+ {[%clk 0:00:04]}  Kd8 {[%clk 0:00:10]} 34. Ra7 {[%clk 0:00:04]}  Bxe4+ {[%clk 0:00:09]} 35. Kf2 {[%clk 0:00:04]}  Bc7 {[%clk 0:00:09]} 36. Be7+ {[%clk 0:00:03]}  Kd7 {[%clk 0:00:10]} 37. Bf6 {[%clk 0:00:03]}  Bf5 {[%clk 0:00:04]} 38. Ke3 {[%clk 0:00:04]}  Kc8 {[%clk 0:00:04]} 39. Bd5 {[%clk 0:00:03]}  Bb6+ {[%clk 0:00:05]} 40. Bd4 {[%clk 0:00:02]}  Bxa7 {[%clk 0:00:05]} 41. Bxa7 {[%clk 0:00:03]}  Rb2 {[%clk 0:00:04]} 42. Bd4 {[%clk 0:00:04]}  Kd7 {[%clk 0:00:03]} 43. Bxb2 {[%clk 0:00:04]}  Kd6 {[%clk 0:00:03]} 44. Bf3 {[%clk 0:00:04]}  Bd7 {[%clk 0:00:02]} 45. Be5+ {[%clk 0:00:05]}  Ke6 {[%clk 0:00:02]} 46. Be4 {[%clk 0:00:06]}  Be8 {[%clk 0:00:03]} 47. Kd4 {[%clk 0:00:06]}  Ke7 {[%clk 0:00:02]} 48. Kc5 {[%clk 0:00:06]}  Ke6 {[%clk 0:00:02]} 49. Kb6 {[%clk 0:00:07]}  Ba4 {[%clk 0:00:01]} 50. Kc7 {[%clk 0:00:07]}  Kf7 {[%clk 0:00:02]} 51. Kd6 {[%clk 0:00:07]}  Bb3 {[%clk 0:00:02]} 52. Bd5+ {[%clk 0:00:08]}  Bxd5 {[%clk 0:00:02]} 53. Kxd5 {[%clk 0:00:08]}  g5 {[%clk 0:00:03]} 54. fxg5 {[%clk 0:00:07]}  Kg6 {[%clk 0:00:04]} 55. Bf4 {[%clk 0:00:08]}  Kf5 {[%clk 0:00:04]} 56. Kd6 {[%clk 0:00:08]}  Kg6 {[%clk 0:00:04]} 57. Ke6 {[%clk 0:00:09]}  Kh7 {[%clk 0:00:05]} 58. Kf6 {[%clk 0:00:09]}  Kh8 {[%clk 0:00:06]} 59. Kg6 {[%clk 0:00:09]}  Kg8 {[%clk 0:00:07]} 60. Kxh5 {[%clk 0:00:10]}  Kh8 {[%clk 0:00:08]} 61. g6 {[%clk 0:00:10]}  Kg8 {[%clk 0:00:09]} 62. Kh6 {[%clk 0:00:11]}  Kh8 {[%clk 0:00:10]} 63. g7+ {[%clk 0:00:11]}  Kg8 {[%clk 0:00:11]} 64. Bg5 {[%clk 0:00:09]}  Kf7 {[%clk 0:00:11]} 65. Kh7 {[%clk 0:00:10]}  Ke6 {[%clk 0:00:12]} 66. g8=Q+ {[%clk 0:00:10]}  Kf5 {[%clk 0:00:13]} 67. Qc8+ {[%clk 0:00:09]}  Ke4 {[%clk 0:00:13]} 68. Kg6 {[%clk 0:00:09]}  Kf3 {[%clk 0:00:13]} 69. h5 {[%clk 0:00:09]}  Kg2 {[%clk 0:00:13]} 70. h6 {[%clk 0:00:10]}  Kg1 {[%clk 0:00:12]} 71. h7 {[%clk 0:00:10]}  Kg2 {[%clk 0:00:13]} 72. h8=Q {[%clk 0:00:09]}  Kf3 {[%clk 0:00:14]} 73. Qh5+ {[%clk 0:00:09]}  Kxg3 {[%clk 0:00:12]} 74. Qc3+ {[%clk 0:00:09]}  Kf2 {[%clk 0:00:12]} 75. Qh2+ {[%clk 0:00:09]}  Kf1 {[%clk 0:00:11]} 76. Qc1# {[%clk 0:00:10]} 1-0


[Site "https://www.chess.com"]

[Event "Titled Tuesday Blitz August 22 Late 2023"]
[White "Filipascu"]
[Black "Toropov, Pavel"]
[BlackFideId "24129178"]
[WhiteElo "2637"]
[BlackElo "2475"]
[Result "1-0"]
[Round "7"]
[TimeControl "180+1"]
[Date "2023.08.22"]
[WhiteClock "0:00:27"]
[BlackClock "0:00:03"]
[Board "77"]

1. c4 {[%clk 0:03:00]}  c6 {[%clk 0:03:00]} 2. d4 {[%clk 0:02:58]}  d5 {[%clk 0:03:00]} 3. e3 {[%clk 0:02:57]}  Nf6 {[%clk 0:03:00]} 4. Nc3 {[%clk 0:02:58]}  g6 {[%clk 0:03:00]} 5. Nf3 {[%clk 0:02:56]}  Bg7 {[%clk 0:02:59]} 6. Be2 {[%clk 0:02:56]}  O-O {[%clk 0:02:59]} 7. O-O {[%clk 0:02:56]}  Bg4 {[%clk 0:02:59]} 8. cxd5 {[%clk 0:02:52]}  cxd5 {[%clk 0:02:43]} 9. h3 {[%clk 0:02:52]}  Bxf3 {[%clk 0:02:42]} 10. Bxf3 {[%clk 0:02:53]}  e6 {[%clk 0:02:41]} 11. b3 {[%clk 0:02:50]}  Qa5 {[%clk 0:02:22]} 12. Qd2 {[%clk 0:02:50]}  Nc6 {[%clk 0:02:20]} 13. Bb2 {[%clk 0:02:48]}  Rfc8 {[%clk 0:02:12]} 14. Rfc1 {[%clk 0:02:48]}  Bf8 {[%clk 0:01:50]} 15. a3 {[%clk 0:02:45]}  Qd8 {[%clk 0:01:46]} 16. b4 {[%clk 0:02:43]}  a5 {[%clk 0:01:31]} 17. b5 {[%clk 0:02:42]}  Ne7 {[%clk 0:01:21]} 18. Na4 {[%clk 0:02:35]}  Nf5 {[%clk 0:01:16]} 19. Qd3 {[%clk 0:02:21]}  Nd6 {[%clk 0:01:11]} 20. Be2 {[%clk 0:02:09]}  Nc4 {[%clk 0:01:04]} 21. Qb3 {[%clk 0:02:01]}  Ne4 {[%clk 0:00:48]} 22. Bc3 {[%clk 0:01:44]}  b6 {[%clk 0:00:35]} 23. Be1 {[%clk 0:01:41]}  Nxa3 {[%clk 0:00:16]} 24. Rxc8 {[%clk 0:01:34]}  Rxc8 {[%clk 0:00:16]} 25. f3 {[%clk 0:01:35]}  Nc2 {[%clk 0:00:08]} 26. Rd1 {[%clk 0:01:16]}  Nxe1 {[%clk 0:00:07]} 27. fxe4 {[%clk 0:01:14]}  Nc2 {[%clk 0:00:05]} 28. exd5 {[%clk 0:01:14]}  Qxd5 {[%clk 0:00:04]} 29. Qxd5 {[%clk 0:01:13]}  exd5 {[%clk 0:00:05]} 30. Nxb6 {[%clk 0:01:12]}  Rb8 {[%clk 0:00:05]} 31. Nxd5 {[%clk 0:01:11]}  a4 {[%clk 0:00:04]} 32. Bd3 {[%clk 0:01:09]}  Nb4 {[%clk 0:00:04]} 33. Nxb4 {[%clk 0:01:08]}  Bxb4 {[%clk 0:00:04]} 34. Ra1 {[%clk 0:01:08]}  a3 {[%clk 0:00:05]} 35. Kf2 {[%clk 0:01:08]}  Kf8 {[%clk 0:00:04]} 36. Ke2 {[%clk 0:01:06]}  Ke7 {[%clk 0:00:05]} 37. e4 {[%clk 0:01:07]}  Kd6 {[%clk 0:00:06]} 38. Ke3 {[%clk 0:01:06]}  f6 {[%clk 0:00:05]} 39. g4 {[%clk 0:01:06]}  Rc8 {[%clk 0:00:05]} 40. h4 {[%clk 0:01:05]}  Rc3 {[%clk 0:00:06]} 41. g5 {[%clk 0:01:03]}  fxg5 {[%clk 0:00:05]} 42. hxg5 {[%clk 0:01:04]}  Rb3 {[%clk 0:00:04]} 43. Ra2 {[%clk 0:00:56]}  Bc3 {[%clk 0:00:02]} 44. e5+ {[%clk 0:00:53]}  Kd5 {[%clk 0:00:02]} 45. Be4+ {[%clk 0:00:52]}  Kc4 {[%clk 0:00:03]} 46. Bd3+ {[%clk 0:00:50]}  Kd5 {[%clk 0:00:03]} 47. Be4+ {[%clk 0:00:41]}  Kc4 {[%clk 0:00:04]} 48. Rc2 {[%clk 0:00:40]}  Rb2 {[%clk 0:00:03]} 49. Bd3+ {[%clk 0:00:30]}  Kd5 {[%clk 0:00:03]} 50. Rxc3 {[%clk 0:00:30]}  a2 {[%clk 0:00:03]} 51. Rc6 {[%clk 0:00:26]}  Rh2 {[%clk 0:00:03]} 52. Be4# {[%clk 0:00:27]} 1-0


[Site "https://www.chess.com"]

[Event "Titled Tuesday Blitz August 22 Late 2023"]
[White "Fernandez Lopez, Ruben"]
[Black "Karttunen, Mika"]
[WhiteFideId "24518298"]
[BlackFideId "502081"]
[WhiteElo "2474"]
[BlackElo "2630"]
[Result "0-1"]
[Round "7"]
[TimeControl "180+1"]
[Date "2023.08.22"]
[WhiteClock "0:00:19"]
[BlackClock "0:00:34"]
[Board "78"]

1. b3 {[%clk 0:03:00]}  e6 {[%clk 0:02:59]} 2. Bb2 {[%clk 0:02:55]}  f5 {[%clk 0:02:59]} 3. c4 {[%clk 0:02:51]}  Nf6 {[%clk 0:02:59]} 4. e3 {[%clk 0:02:52]}  Be7 {[%clk 0:02:57]} 5. Nf3 {[%clk 0:02:52]}  O-O {[%clk 0:02:57]} 6. Be2 {[%clk 0:02:52]}  d6 {[%clk 0:02:57]} 7. O-O {[%clk 0:02:52]}  e5 {[%clk 0:02:57]} 8. Nc3 {[%clk 0:02:52]}  c5 {[%clk 0:02:54]} 9. d4 {[%clk 0:02:53]}  e4 {[%clk 0:02:54]} 10. Nd2 {[%clk 0:02:52]}  Nc6 {[%clk 0:02:49]} 11. dxc5 {[%clk 0:02:49]}  dxc5 {[%clk 0:02:49]} 12. a3 {[%clk 0:02:49]}  Be6 {[%clk 0:02:44]} 13. Qc2 {[%clk 0:02:49]}  Bd6 {[%clk 0:02:39]} 14. Rad1 {[%clk 0:02:45]}  Qe7 {[%clk 0:02:30]} 15. Nb5 {[%clk 0:02:44]}  Bb8 {[%clk 0:02:29]} 16. f4 {[%clk 0:02:40]}  exf3 {[%clk 0:02:25]} 17. Bxf3 {[%clk 0:02:40]}  Ne5 {[%clk 0:02:09]} 18. e4 {[%clk 0:02:21]}  Nxf3+ {[%clk 0:02:03]} 19. Rxf3 {[%clk 0:02:22]}  a6 {[%clk 0:01:30]} 20. exf5 {[%clk 0:02:20]}  Bf7 {[%clk 0:01:19]} 21. Bxf6 {[%clk 0:02:19]}  Qxf6 {[%clk 0:01:14]} 22. Ne4 {[%clk 0:02:13]}  Qe5 {[%clk 0:01:14]} 23. Nbd6 {[%clk 0:02:13]}  Bh5 {[%clk 0:01:09]} 24. Rd5 {[%clk 0:02:12]}  Bxd6 {[%clk 0:00:37]} 25. Rxe5 {[%clk 0:01:55]}  Bxe5 {[%clk 0:00:38]} 26. Rh3 {[%clk 0:01:54]}  Bg4 {[%clk 0:00:37]} 27. Rd3 {[%clk 0:01:11]}  Bxf5 {[%clk 0:00:36]} 28. Rd5 {[%clk 0:01:11]}  Bd4+ {[%clk 0:00:36]} 29. Rxd4 {[%clk 0:00:57]}  cxd4 {[%clk 0:00:36]} 30. g4 {[%clk 0:00:57]}  Bg6 {[%clk 0:00:35]} 31. Qg2 {[%clk 0:00:54]}  Rae8 {[%clk 0:00:34]} 32. h4 {[%clk 0:00:26]}  Bxe4 {[%clk 0:00:34]} 33. Qd2 {[%clk 0:00:26]}  d3 {[%clk 0:00:34]} 34. h5 {[%clk 0:00:23]}  Rf3 {[%clk 0:00:34]} 35. h6 {[%clk 0:00:24]}  Rg3+ {[%clk 0:00:34]} 36. Kh2 {[%clk 0:00:19]}  Rg2+ {[%clk 0:00:34]} 0-1


[Site "https://www.chess.com"]

[Event "Titled Tuesday Blitz August 22 Late 2023"]
[White "Garcia Blanco, Omar"]
[Black "Kirillov, Dmitry"]
[WhiteFideId "2287153"]
[BlackFideId "34180572"]
[WhiteElo "2617"]
[BlackElo "2471"]
[Result "0-1"]
[Round "7"]
[TimeControl "180+1"]
[Date "2023.08.22"]
[WhiteClock "0:00:21"]
[BlackClock "0:00:20"]
[Board "79"]

1. e4 {[%clk 0:03:00]}  e5 {[%clk 0:02:59]} 2. Nc3 {[%clk 0:03:00]}  Nf6 {[%clk 0:02:58]} 3. f4 {[%clk 0:03:00]}  d5 {[%clk 0:02:58]} 4. fxe5 {[%clk 0:03:00]}  Nxe4 {[%clk 0:02:58]} 5. Qe2 {[%clk 0:03:01]}  Nc6 {[%clk 0:02:57]} 6. Nf3 {[%clk 0:03:01]}  Nxc3 {[%clk 0:02:31]} 7. dxc3 {[%clk 0:03:02]}  Bg4 {[%clk 0:02:28]} 8. Bf4 {[%clk 0:03:00]}  Bc5 {[%clk 0:02:26]} 9. O-O-O {[%clk 0:02:59]}  O-O {[%clk 0:02:25]} 10. Kb1 {[%clk 0:02:58]}  Re8 {[%clk 0:02:23]} 11. h3 {[%clk 0:02:58]}  Bxf3 {[%clk 0:02:21]} 12. Qxf3 {[%clk 0:02:45]}  Nxe5 {[%clk 0:02:19]} 13. Qg3 {[%clk 0:02:32]}  Qf6 {[%clk 0:01:38]} 14. Rxd5 {[%clk 0:02:23]}  Ng6 {[%clk 0:01:37]} 15. Bg5 {[%clk 0:02:11]}  Bf2 {[%clk 0:01:31]} 16. Qf3 {[%clk 0:01:30]}  Qxg5 {[%clk 0:01:18]} 17. Bc4 {[%clk 0:01:30]}  Qe3 {[%clk 0:01:09]} 18. Rf5 {[%clk 0:00:49]}  Qxf3 {[%clk 0:00:58]} 19. Rxf3 {[%clk 0:00:49]}  Ne5 {[%clk 0:00:55]} 20. Bxf7+ {[%clk 0:00:49]}  Nxf7 {[%clk 0:00:56]} 21. Rxf2 {[%clk 0:00:49]}  Re7 {[%clk 0:00:54]} 22. a3 {[%clk 0:00:49]}  Rae8 {[%clk 0:00:55]} 23. Ka2 {[%clk 0:00:49]}  Re1 {[%clk 0:00:56]} 24. Rxe1 {[%clk 0:00:49]}  Rxe1 {[%clk 0:00:56]} 25. Rf4 {[%clk 0:00:50]}  Re2 {[%clk 0:00:54]} 26. Kb3 {[%clk 0:00:41]}  Rxg2 {[%clk 0:00:52]} 27. Rc4 {[%clk 0:00:42]}  c6 {[%clk 0:00:51]} 28. Ra4 {[%clk 0:00:42]}  a6 {[%clk 0:00:50]} 29. Rd4 {[%clk 0:00:41]}  Rg5 {[%clk 0:00:39]} 30. a4 {[%clk 0:00:40]}  Rd5 {[%clk 0:00:39]} 31. Re4 {[%clk 0:00:40]}  Nd6 {[%clk 0:00:38]} 32. Re7 {[%clk 0:00:40]}  Kf8 {[%clk 0:00:34]} 33. Rd7 {[%clk 0:00:36]}  b5 {[%clk 0:00:25]} 34. a5 {[%clk 0:00:22]}  Nc4 {[%clk 0:00:19]} 35. Ra7 {[%clk 0:00:22]}  Nxa5+ {[%clk 0:00:20]} 36. Kb4 {[%clk 0:00:23]}  Nc4 {[%clk 0:00:17]} 37. Rxa6 {[%clk 0:00:21]}  Nxb2 {[%clk 0:00:16]} 38. Rxc6 {[%clk 0:00:21]}  Nc4 {[%clk 0:00:16]} 39. Rc7 {[%clk 0:00:20]}  Kg8 {[%clk 0:00:15]} 40. Rb7 {[%clk 0:00:20]}  h5 {[%clk 0:00:14]} 41. h4 {[%clk 0:00:20]}  Kh7 {[%clk 0:00:13]} 42. Rc7 {[%clk 0:00:20]}  Kh6 {[%clk 0:00:13]} 43. Rc6+ {[%clk 0:00:20]}  g6 {[%clk 0:00:14]} 44. Ra6 {[%clk 0:00:20]}  Ne3 {[%clk 0:00:14]} 45. Rb6 {[%clk 0:00:19]}  Nxc2+ {[%clk 0:00:14]} 46. Kb3 {[%clk 0:00:19]}  Ne3 {[%clk 0:00:14]} 47. Kb4 {[%clk 0:00:20]}  Nc4 {[%clk 0:00:15]} 48. Rc6 {[%clk 0:00:19]}  Ne5 {[%clk 0:00:15]} 49. Rc8 {[%clk 0:00:19]}  Nc4 {[%clk 0:00:15]} 50. Ra8 {[%clk 0:00:18]}  Rf5 {[%clk 0:00:16]} 51. Rc8 {[%clk 0:00:18]}  Rf4 {[%clk 0:00:15]} 52. Kxb5 {[%clk 0:00:17]}  Nd6+ {[%clk 0:00:16]} 53. Kb6 {[%clk 0:00:17]}  Nxc8+ {[%clk 0:00:17]} 54. Kb5 {[%clk 0:00:18]}  Rxh4 {[%clk 0:00:18]} 55. c4 {[%clk 0:00:18]}  Rxc4 {[%clk 0:00:18]} 56. Kxc4 {[%clk 0:00:18]}  h4 {[%clk 0:00:19]} 57. Kd3 {[%clk 0:00:18]}  h3 {[%clk 0:00:20]} 58. Ke2 {[%clk 0:00:19]}  h2 {[%clk 0:00:20]} 59. Kf2 {[%clk 0:00:20]}  h1=Q {[%clk 0:00:21]} 60. Kg3 {[%clk 0:00:21]}  Qe4 {[%clk 0:00:20]} 0-1


[Site "https://www.chess.com"]

[Event "Titled Tuesday Blitz August 22 Late 2023"]
[White "Kim, Sergey"]
[Black "Buchenau, Frank"]
[WhiteFideId "13700570"]
[BlackFideId "4604350"]
[WhiteElo "2602"]
[BlackElo "2462"]
[Result "1-0"]
[Round "7"]
[TimeControl "180+1"]
[Date "2023.08.22"]
[WhiteClock "0:00:49"]
[BlackClock "0:00:00"]
[Board "81"]

1. d4 {[%clk 0:02:56]}  e6 {[%clk 0:03:00]} 2. c4 {[%clk 0:02:56]}  Nf6 {[%clk 0:03:00]} 3. Nc3 {[%clk 0:02:55]}  Bb4 {[%clk 0:03:00]} 4. Qc2 {[%clk 0:02:54]}  c5 {[%clk 0:02:59]} 5. dxc5 {[%clk 0:02:53]}  O-O {[%clk 0:02:59]} 6. Nf3 {[%clk 0:02:53]}  Na6 {[%clk 0:02:59]} 7. e3 {[%clk 0:02:53]}  Nxc5 {[%clk 0:02:59]} 8. Bd2 {[%clk 0:02:53]}  b6 {[%clk 0:02:56]} 9. Be2 {[%clk 0:02:53]}  Bb7 {[%clk 0:02:50]} 10. O-O {[%clk 0:02:53]}  Rc8 {[%clk 0:02:47]} 11. Rfd1 {[%clk 0:02:52]}  d6 {[%clk 0:02:42]} 12. Be1 {[%clk 0:02:52]}  Qe7 {[%clk 0:02:39]} 13. Rac1 {[%clk 0:02:51]}  e5 {[%clk 0:02:32]} 14. Nd2 {[%clk 0:02:36]}  Bxc3 {[%clk 0:02:26]} 15. Qxc3 {[%clk 0:02:34]}  d5 {[%clk 0:02:15]} 16. Qa3 {[%clk 0:02:32]}  d4 {[%clk 0:02:09]} 17. Nf3 {[%clk 0:02:15]}  d3 {[%clk 0:02:06]} 18. Bf1 {[%clk 0:02:16]}  a5 {[%clk 0:01:37]} 19. b4 {[%clk 0:02:08]}  axb4 {[%clk 0:01:35]} 20. Bxb4 {[%clk 0:02:08]}  Ra8 {[%clk 0:01:35]} 21. Qb2 {[%clk 0:01:59]}  e4 {[%clk 0:01:21]} 22. Nd4 {[%clk 0:01:58]}  Qe5 {[%clk 0:01:18]} 23. h3 {[%clk 0:01:52]}  Bc8 {[%clk 0:01:05]} 24. Bc3 {[%clk 0:01:47]}  Na4 {[%clk 0:01:02]} 25. Qb3 {[%clk 0:01:44]}  Nxc3 {[%clk 0:01:01]} 26. Rxc3 {[%clk 0:01:43]}  Qg5 {[%clk 0:00:59]} 27. Kh2 {[%clk 0:01:36]}  Qh5 {[%clk 0:00:54]} 28. Rd2 {[%clk 0:01:34]}  Nd7 {[%clk 0:00:38]} 29. Qb5 {[%clk 0:01:28]}  Qg6 {[%clk 0:00:31]} 30. Qf5 {[%clk 0:01:23]}  Nc5 {[%clk 0:00:28]} 31. Qd5 {[%clk 0:01:14]}  Bb7 {[%clk 0:00:26]} 32. Qe5 {[%clk 0:01:11]}  Rfe8 {[%clk 0:00:26]} 33. Qg3 {[%clk 0:01:11]}  Qxg3+ {[%clk 0:00:20]} 34. Kxg3 {[%clk 0:01:10]}  Ra6 {[%clk 0:00:18]} 35. Nb3 {[%clk 0:01:03]}  Rea8 {[%clk 0:00:16]} 36. Nc1 {[%clk 0:01:02]}  Bc8 {[%clk 0:00:15]} 37. f3 {[%clk 0:01:01]}  f5 {[%clk 0:00:15]} 38. Kf4 {[%clk 0:01:01]}  Bd7 {[%clk 0:00:12]} 39. h4 {[%clk 0:01:00]}  Kf7 {[%clk 0:00:12]} 40. h5 {[%clk 0:00:57]}  Kf6 {[%clk 0:00:12]} 41. g4 {[%clk 0:00:51]}  Ne6+ {[%clk 0:00:11]} 42. Kg3 {[%clk 0:00:51]}  f4+ {[%clk 0:00:12]} 43. exf4 {[%clk 0:00:49]}  e3 {[%clk 0:00:00]} 44. Rdxd3 {[%clk 0:00:49]} 1-0


[Site "https://www.chess.com"]